Cogmind - Beta 14 @@@ ROGUE MODE // 2024.12.20 @ 04:04:58 Player: WanS24 Result: Destroyed by G-47 Trooper with Particle Gun Performance ------------- Evolutions (2) 1000 Regions Visited (4) 800 Robots Destroyed (30) 150 Value Destroyed (758) 758 Prototype IDs (0) 0 Alien Tech Used (0) 0 Bonus (0) 0 TOTAL SCORE: 2708 Bonus ------- None Cogmind --------- Core Integrity 0/550 Matter 150/300 Energy 120/125 System Corruption 0% Temperature Cool (18) Movement Core (150) Ox2 Location -8/Storage Parts ------- > --- POWER (1) -------- Light Ion Engine > --- PROPULSION (3) --- (None) > --- UTILITY (5) ------ Visual Processing Unit > --- WEAPON (2) ------- Minigun Minigun > --- INVENTORY (5) ---- (None) Peak State ------------ > --- POWER ------------ (None) > --- PROPULSION ------- VSS Leg > --- UTILITY ---------- Heat Sink Visual Processing Unit Reaction Control System Core Shielding Light Armor Plating > --- WEAPON ----------- Spread Laser Ion Cannon > --- INVENTORY -------- VTOL Module VTOL Module [Rating: 16] Favorites ----------- Power Light Ion Engine Engine Light Ion Engine Propulsion Flight Unit Treads Light Treads Leg Aluminum Leg Hover Unit Hover Unit Flight Unit Flight Unit Utility Targeting Computer Device Heat Sink Processor Targeting Computer Protection Light Armor Plating Weapon Light Assault Rifle Energy Gun Beam Rifle Energy Cannon Ion Cannon Ballistic Gun Light Assault Rifle Ballistic Cannon Flak Cannon Build | -11 -10 -9 -8 -8 ------- Run | Yrd Mat Mat Mat Sto Slots Evolved 4 | . . 2 2 . Power . | . . . . . Propulsion 1 | . . . 1 . Utility 3 | . . 2 1 . Weapon . | . . . . . Parts Attached 62 | 6 12 22 10 12 Power 5 | 1 . 3 . 1 Engine 5 | 1 . 3 . 1 Core . | . . . . . Reactor . | . . . . . Propulsion 20 | 3 5 5 4 3 Treads 2 | . . 2 . . Leg 10 | 3 3 . 3 1 Wheel . | . . . . . Hover 2 | . . 1 1 . Flight 6 | . 2 2 . 2 Utility 16 | . 4 6 2 4 Device 9 | . 3 2 2 2 Storage . | . . . . . Processor 3 | . 1 2 . . Hackware . | . . . . . Protection 4 | . . 2 . 2 Artifact . | . . . . . Weapon 21 | 2 3 8 4 4 Energy Gun 8 | . 1 3 3 1 Energy Cannon 1 | . . . . 1 Ballistic Gun 11 | 2 2 5 . 2 Ballistic Cannon 1 | . . . 1 . Launcher . | . . . . . Special Weapon . | . . . . . Impact Weapon . | . . . . . Slashing Weapon . | . . . . . Piercing Weapon . | . . . . . Special Melee Weapon . | . . . . . Unidentified Prototypes . | . . . . . Parts Lost 23 | . 1 3 9 10 Power 1 | . . . 1 . Propulsion 6 | . . 1 2 3 Utility 9 | . . 1 3 5 Weapon 7 | . 1 1 3 2 Highest Loss Streak 6 | . 1 2 3 6 To Critical Strikes . | . . . . . Average Slot Usage (%) 76 | . 90 93 59 46 Engine 7 | . 14 11 1 . Treads 1 | . . 4 . . Leg 8 | . 22 . 2 9 Flight 8 | . 5 15 7 4 Device 12 | . 10 13 13 11 Processor 15 | . 8 21 18 9 Protection 2 | . . 3 1 3 Energy Gun 9 | . 11 10 10 4 Ballistic Gun 8 | . 16 11 . 2 Peak Build Rating 16 | 5 9 12 15 16 Average Rating 9 | 3 7 10 10 11 On Entrance 7 | . 5 7 12 12 Naked Turns . | . . . . . Heaviest Build 17 | 5 7 13 17 15 Greatest Support 40 | 20 20 40 22 22 Greatest Overweight (x) 4 | . . 3 4 4 Average Overweight (x) . | . . . 1 . Largest Inventory Capacity 5 | 5 5 5 5 5 Average Capacity 5 | 5 5 5 5 5 Most Carried 5 | 4 5 3 3 3 Average Carried . | 1 . . . 1 Final Capacity 5 | 5 5 5 5 5 Final Carried 1 | 1 . . 1 . Class Distribution -------------------- 53% | Mutant 46% | Scavenger-Mutant Dominant Class ---------------- Mutant | -10/Materials Scavenger-Mutant | -9/Materials Mutant | -8/Materials Mutant | -8/Storage Resources | -11 -10 -9 -8 -8 ----------- Run | Yrd Mat Mat Mat Sto Matter Collected 828 | 266 59 319 110 74 Remotely . | . . . . . Salvage Created 799 | 43 151 363 125 117 Parts 74 | 2 12 41 7 12 Haulers Intercepted . | . . . . . Recyclers Shooed 1 | . . 1 . . Parts Field Recycled . | . . . . . Retrieved Matter . | . . . . . Parts Self-Destructed . | . . . . . Prevented . | . . . . . Kills | -11 -10 -9 -8 -8 ------- Run | Yrd Mat Mat Mat Sto Combat Hostiles Destroyed 25 | 1 5 8 6 5 Guns 20 | 1 5 8 2 4 Cannons 5 | . . . 4 1 Classes Destroyed 5 | 1 2 2 . . Worker 1 | . . 1 . . Watcher 4 | . 1 3 . . Swarmer 12 | . 3 3 2 4 Grunt 7 | 1 2 1 3 . Sentry 6 | . . 4 1 1 Best Kill Streak 3 | 1 3 3 2 3 Combat Bots Only 3 | 1 3 3 2 3 Max Kills in Single Turn 2 | 1 1 2 1 1 Gunslinging 1 | . . 1 . . Exploded . | . . . . . Melee . | . . . . . Uniques/NPCs Destroyed . | . . . . . Combat | -11 -10 -9 -8 -8 -------- Run | Yrd Mat Mat Mat Sto Hostile Shots Fired 279 | 2 28 53 90 106 Missed 90 | . 9 17 32 32 Damage Taken 2467 | 24 263 431 902 847 Core 666 | . 58 52 209 347 Absorbed by Shields 17 | . . . . 17 Redirected to Shielding 13 | . . . . 13 Core Remaining (%) 87 | 100 76 87 . . Volleys Fired 117 | 3 20 44 41 9 Largest 2 | 2 2 2 2 2 Hottest 130 | 40 60 112 130 125 Shots Fired 192 | 6 38 85 47 16 Gun 167 | 6 38 85 24 14 Cannon 25 | . . . 23 2 Launcher . | . . . . . Special . | . . . . . Kinetic 130 | 6 22 69 23 10 Thermal 62 | . 16 16 24 6 Explosive . | . . . . . Electromagnetic . | . . . . . Robot Hit Streak 14 | 2 8 14 12 3 Robot Miss Streak 5 | 1 3 3 5 3 Penetration Max . | . . . . . Secondary Targets 3 | . . 2 . 1 Max Gunslinging Chain 1 | . . 1 . 1 Shots Hit Robots 132 | 3 24 56 37 12 Core Hits 85 | 2 12 27 29 15 Critical Kills . | . . . . . Critical Parts Destroyed . | . . . . . Critical Strikes 3 | . . . 3 . Burn 3 | . . . 3 . Melee Attacks . | . . . . . Impact . | . . . . . Slashing . | . . . . . Piercing . | . . . . . Sneak Attacks . | . . . . . Combat Hostiles . | . . . . . Follow-up Attacks . | . . . . . Damage Inflicted 1620 | 25 211 575 596 213 Guns 1181 | 25 209 575 208 164 Cannons 433 | . . . 388 45 Explosions . | . . . . . Melee . | . . . . . Ramming 6 | . 2 . . 4 Kinetic 964 | 25 91 358 388 102 Thermal 650 | . 118 217 208 107 Explosive . | . . . . . Electromagnetic . | . . . . . Impact . | . . . . . Slashing . | . . . . . Piercing . | . . . . . Highest Corruption 3 | . 3 . . . Average Corruption 1 | . 1 . . . Corruption Purged . | . . . . . Corruption Blocked . | . . . . . Effects 3 | . 3 . . . Message Errors 1 | . 1 . . . Matter Fused 1 | . 1 . . . Misfires 1 | . 1 . . . Overload Shots . | . . . . . Overflow Damage . | . . . . . Projectiles . | . . . . . Explosions . | . . . . . Melee . | . . . . . Knockbacks 12 | . . . 12 . Impact . | . . . . . Kinetic 12 | . . . 12 . Secondary . | . . . . . Self-Inflicted Damage . | . . . . . Shots . | . . . . . Rammed . | . . . . . Targets Rammed 3 | . 1 . . 2 Kicked 3 | . 1 . . 2 Crushed . | . . . . . Highest Temperature 105 | 6 67 105 49 9 Average Temperature 26 | 6 32 36 15 4 Received Heat Transfer 780 | 12 66 108 378 216 Siege Activations . | . . . . . Robots Corrupted . | . . . . . Combat Hostiles . | . . . . . Parts Fried . | . . . . . Impact Corruptions . | . . . . . Robots Melted . | . . . . . Combat Hostiles . | . . . . . Parts Melted 2 | . . 1 . 1 Heat Transferred 1651 | . 275 555 672 149 Parts Sabotaged . | . . . . . Parts Stolen . | . . . . . Parts Stripped . | . . . . . Power Chain Reactions . | . . . . . Alert | -11 -10 -9 -8 -8 ------- Run | Yrd Mat Mat Mat Sto Peak Influence 296 | 20 160 296 146 215 Initial 40 | . 13 . 40 . Average 99 | 3 69 145 104 87 Maximum Alert Level 1 | . . 1 . 1 Low Security (%) 88 | 100 100 63 100 95 Level 1 11 | . . 36 . 4 Level 2 . | . . . . . Level 3 . | . . . . . Level 4 . | . . . . . Level 5 . | . . . . . High Security . | . . . . . Max Security . | . . . . . Squads Dispatched . | . . . . . Investigation . | . . . . . Extermination . | . . . . . Reinforcement . | . . . . . Assault . | . . . . . Garrison . | . . . . . Intercept . | . . . . . Searches Triggered . | . . . . . Construction Impeded . | . . . . . Haulers Reinforced . | . . . . . Active Scanning Responses . | . . . . . Cargo Convoy Interrupts . | . . . . . Stealth | -11 -10 -9 -8 -8 --------- Run | Yrd Mat Mat Mat Sto Distress Signals 1 | . . . . 1 Communications Jammed . | . . . . . Distress Signals . | . . . . . Times Spotted 53 | 1 8 13 12 19 Peak Tracking Total 12 | 1 3 4 5 12 Tactical Retreats 4 | . 1 . 1 2 Traps | -11 -10 -9 -8 -8 ------- Run | Yrd Mat Mat Mat Sto Traps Triggered 6 | . 2 . 2 2 Indirectly . | . . . . . Trap Hack Attempts . | . . . . . Triggered . | . . . . . Disarmed . | . . . . . Reprogrammed . | . . . . . Reused . | . . . . . Traps Extracted . | . . . . . Installed . | . . . . . Triggered . | . . . . . Machines | -11 -10 -9 -8 -8 ---------- Run | Yrd Mat Mat Mat Sto Machines Disabled 1 | . . . . 1 Max in Single Turn 1 | . . . . 1 Machines Repaired . | . . . . . Machines Dismantled . | . . . . . Machines Sabotaged . | . . . . . Overloaded Fab Kills . | . . . . . Hacking | -11 -10 -9 -8 -8 --------- Run | Yrd Mat Mat Mat Sto Machines Accessed 1 | . 1 . . . Terminals . | . . . . . Fabricators . | . . . . . Repair Stations 1 | . 1 . . . Recycling Units . | . . . . . Scanalyzers . | . . . . . Garrison Access . | . . . . . Total Hacks 1 | . 1 . . . Successful . | . . . . . Failed 1 | . 1 . . . Catastrophic . | . . . . . Database Lockouts . | . . . . . Manual . | . . . . . Terminals . | . . . . . Fabricators . | . . . . . Repair Stations 1 | . 1 . . . Recycling Units . | . . . . . Scanalyzers . | . . . . . Garrison Access . | . . . . . Terminal Hacks . | . . . . . Fabricator Hacks . | . . . . . Repair Station Hacks . | . . . . . Recycling Unit Hacks . | . . . . . Scanalyzer . | . . . . . Garrison Access Hacks . | . . . . . Unauthorized Hacks . | . . . . . Terminals . | . . . . . Fabricators . | . . . . . Repair Stations . | . . . . . Recycling Units . | . . . . . Scanalyzers . | . . . . . Garrison Access . | . . . . . Data Cores Recovered . | . . . . . Used . | . . . . . Hacking Detections . | . . . . . Full Trace Events . | . . . . . Feedback Events . | . . . . . Feedback Blocked . | . . . . . Robot Schematics Acquired . | . . . . . Robots Built . | . . . . . Authchips . | . . . . . Time . | . . . . . Total Robot Build Rating . | . . . . . Part Schematics Acquired . | . . . . . Parts Built . | . . . . . Authchips . | . . . . . Time . | . . . . . Total Part Build Rating . | . . . . . Parts Repaired . | . . . . . Time . | . . . . . Parts Recycled . | . . . . . Recycled Matter . | . . . . . Retrieved Matter . | . . . . . Retrieved Components . | . . . . . Parts Scanalyzed . | . . . . . Part Schematics Acquired . | . . . . . Parts Damaged . | . . . . . Bothacking | -11 -10 -9 -8 -8 ------------ Run | Yrd Mat Mat Mat Sto Used RIF Installer . | . . . . . Robots Hacked . | . . . . . Non-combat . | . . . . . Combat . | . . . . . Robot Hacks Applied . | . . . . . Relay Couplers Released . | . . . . . Fabnet Peak Effective % . | . . . . . Robots Rewired . | . . . . . Allies Hacked . | . . . . . Hacks Repelled . | . . . . . Allies | -11 -10 -9 -8 -8 -------- Run | Yrd Mat Mat Mat Sto Total Allies . | . . . . . Largest Group . | . . . . . Highest-Rated Group . | . . . . . Highest-Rated Ally . | . . . . . Total Orders . | . . . . . Ally Attacks . | . . . . . Total Damage . | . . . . . Kills . | . . . . . Allies Corrupted . | . . . . . Allies Melted . | . . . . . Intel | -11 -10 -9 -8 -8 ------- Run | Yrd Mat Mat Mat Sto Robot Analysis Total . | . . . . . Derelict Logs Recovered . | . . . . . Drone Launches . | . . . . . Drone Recoveries . | . . . . . Exploration | -11 -10 -9 -8 -8 ------------- Run | Yrd Mat Mat Mat Sto Turns Passed 1588 | 96 403 475 402 212 Spaces Moved 1161 | 74 345 406 180 156 Core 91 | 26 . 16 9 40 Treads 45 | . . 45 . . Legs 357 | 48 210 . 56 43 Wheels . | . . . . . Hover 62 | . . 35 27 . Flight 606 | . 135 310 88 73 Fastest Speed 37 | 50 37 37 37 42 Average Speed 91 | 95 87 70 138 98 Slowest Speed 250 | 120 120 200 250 250 Overloaded Moves . | . . . . . Propulsion Burnouts . | . . . . . Robots Hopped 3 | . . 1 . 2 Cave-ins Triggered . | . . . . . Exploration Rate (%) 26 | 6 51 34 17 25 Regions Visited 4 Branch Regions 1 Pre-discovered Areas . | . . . . . Known Exits Taken . | . . . . . Unknown Exits Taken 4 | 1 1 1 1 . Scrap Searched . | . . . . . Spaces Dug . | . . . . . Terrain Destroyed . | . . . . . Melee . | . . . . . Projectile . | . . . . . AOE . | . . . . . Terrain Rammed . | . . . . . Walls Destroyed . | . . . . . Machines Disabled . | . . . . . Actions | -11 -10 -9 -8 -8 --------- Run | Yrd Mat Mat Mat Sto Total 1525 | 96 416 527 287 199 Wait 69 | . 13 13 42 1 Move 1152 | 73 344 403 179 153 Hop 2 | . . 1 . 1 Pick Up 68 | 10 13 23 11 11 Fast Attach . | . . . . . Attach 47 | 5 8 13 9 12 Detach 5 | . 2 3 . . Swap 15 | 1 4 9 1 . Drop 38 | 4 11 18 4 1 Fire 117 | 3 20 44 41 9 Melee . | . . . . . Ram . | . . . . . Kick 3 | . 1 . . 2 Crush . | . . . . . Escape Stasis 9 | . . . . 9 Rewire . | . . . . . Trap . | . . . . . Miscellaneous . | . . . . . Route ------- -11/Scrapyard -10/Materials (discovered 2 exits: *Mat x2) -9/Materials -8/Materials -8/Storage History --------- Turn | Location | Event 2 | -11/Scrapyard | Met Revision 17 70 | -11/Scrapyard | Discovered new exit (range 8) 97 | -11/Scrapyard | Entered Materials 308 | -10/Materials | Discovered new exit (range 4) 455 | -10/Materials | Discovered new exit (range 16) 500 | -10/Materials | Entered another Materials area 500 | -9/Materials | Evolved 2 slots: Utility x2 712 | -9/Materials | Build established: Scavenger-Mutant 772 | -9/Materials | Discovered new exit (range 18) 975 | -9/Materials | Entered another Materials area 975 | -8/Materials | Evolved 2 slots: Propulsion x1, Utility x1 1057 | -8/Materials | Lost 3 parts (1p1u1w) 1356 | -8/Materials | Discovered new exit (range 5) 1377 | -8/Materials | Entered Storage 1424 | -8/Storage | Build established: Mutant 1484 | -8/Storage | Core integrity fell below 50% 1542 | -8/Storage | Lost 6 parts (4u2w) 1556 | -8/Storage | Core integrity fell below 20% 1589 | -8/Storage | Destroyed by G-47 Trooper with Particle Gun Last Messages --------------- Field strength at 66. Field strength at 58. Field strength at 47. Field strength at 36. Field strength at 26. Field strength at 15. Field strength at 5. Stasis field depleted. Acquired Minigun. VTOL Module destroyed. S-10 Pest destroyed. VSS Leg destroyed. S-10 Pest destroyed. Switching to secondary target: G-47 Trooper. Destroyed Flight Unit. Component Storage disabled. S-10 Pest destroyed. Acquired 12 matter. Acquired Lgt. Ion Engine. VTOL Module destroyed. Map ----- +----------------------------------------------------+ | ????????????????????????????????????????????????? | | ????????????????????????????????????????????????? | | ????????????????????????????????????????????????? | | ????????????????????????????????????????????????? | | ????????????????????????????????????????????????? | | ????????????????????????????????????????????????? | | ????????????????????????????????????????????????? | | ????????????????????????????????????????????????? | | ????????????????????????????????????????????????? | | ????????????????????????????????????????????????? | | ????????????????????????????????????????????????? | | ????????????????????????????????????????????????? | | ????????????????????????????????????????????????? | | ????????????????????????????????????????????????? | | ???????????????????????????#####????????????????? | | ???????????????????????????# #????????????????? | | ?????????????????????####### #????????????????? | | ?????????????????????? # #####????????????? | | ???????????????????????" # #"""#????????????? | | ????????????????????????" # #"T"###??????????? | | ?????????????????#???????" " [ ####???????? | | ?????????????????# ?????" # """#???????? | | ?????????????????# ????" # " R"#???????? | | ?????????????????# """"g# =%T """#???????? | | ?????????????????# [ # ^=" ####???????? | | ?????????????????#######@### =%= #??????????? | | ???????????????????????# #?# [ #??????????? | | ???????????????????????# #?# "" #??????????? | | ???????????????????????# #?# ^ """ ##+#???????? | | ??????????????????????##Y### """ #???????? | | ?????????????????????# # """ #???????? | | ?????????????????????? # """ ##### """ | | ?????????????????????? # / """ | | ?????????????????????? # ##+##### """ | | ?????????????????????? #"T"### #????? | | ??????###########?????# ###+#####??# #????? | | ??????# #?????# #? ???????# #????? | | ??????# =!! #?????# #? ???????# #????? | | ??????# !! #?????# #? ???????# #????? | | ?????## !!! #?????# #?? ???????# #?#### | | ?????#T #?????# #??????????# #?#""" | | ?????## #?????# #??????????#####/###"Y" | | ??????# #?????# #??????????????# ## | | ??????# #?????# #?????????????## ## | | ?????######+##+######## ############### # "" | | ?????# / "" | | ?????# #####/##+###### # "" | | ?????# # ! #???##### | | ?????###################### #???????##### | | ??????????????????????????# % #???????????? | +----------------------------------------------------+ Best States ------------- Heat Dissipation 49 Energy Generation 10 Energy Capacity 125 Matter Stores 300 Matter Capacity 300 Sight Range 18 Robot Scan Range 14 Terrain Scan Density 10 Armor Coverage 150 Core Shielding 20 Evasion (%) 63 Targeting Accuracy 10 Recoil Reduction 2 Particle Charging 15 Item Schematics ----------------- None Robot Schematics ------------------ None Fabricated ------------ Nothing Alien Tech Used ----------------- None Achievements -------------- None Challenges ------------ None Game ------ Seed WeightHoverAutopenetrator Manual? 0 Play Time 00:38:21 Cumulative 2.0 hours Start 2024.12.20 @ 03:25:44 End 2024.12.20 @ 04:04:58 Sessions 1 Manual Loads 0 Difficulty Rogue Special Mode None Game No. 2 Rogue 2 Adventurer 0 Explorer 0 Win Type - Total 0 Types 0/0/0/0/0/0/0/0/0 Lore% 0 Gallery% 4 Achievement% 3 Wizard Run 0 Options --------- Layout 1 ASCII 0 Keyboard 0 Movement Mouse Keybinds 0 Fullscreen 1 Font 24/Smallcaps Map View 50x35 Zoom Use 0% Tactical HUD 0 Map Filters NONE Filters NONE Steam 1 RUN: 61c9bfbc-3aa9-43ae-824d-43372e9c22d0